Workbook

Sheet 条件付き書式
B2: 科目 | C2: 今年 | D2: 昨年 | E2: 昨年比 | F2: 予算 | G2: 予算比
B3: 科目01 | C3: 13635 | D3: 22352 | E3: =C3/D3 -> 0.6100125268 | F3: 23921 | G3: =C3/F3 -> 0.5700012541
B4: 科目02 | C4: 17047 | D4: 17219 | E4: =C4/D4 -> 0.9900110343 | F4: 16082 | G4: =C4/F4 -> 1.060004975
B5: 科目03 | C5: 1202 | D5: 1198 | E5: =C5/D5 -> 1.003338898 | F5: 1237 | G5: =C5/F5 -> 0.9717057397
B6: 科目04 | C6: 2234 | D6: 2379 | E6: =C6/D6 -> 0.939050021 | F6: 2657 | G6: 0.841
B7: 科目05 | C7: 16824 | D7: 18693 | E7: =C7/D7 -> 0.9000160488 | F7: 18090 | G7: 0.93
B8: 科目06 | C8: 24547 | D8: 28494 | E8: =C8/D8 -> 0.8614796097 | F8: 26872 | G8: 0.913
B9: 科目07 | C9: 12512 | D9: 11945 | E9: =C9/D9 -> 1.04746756 | F9: 11426 | G9: 1.095
B10: 科目08 | C10: 11792 | D10: 12211 | E10: =C10/D10 -> 0.9656866759 | F10: 10454 | G10: =C10/F10 -> 1.127989286
B11: 科目09 | C11: 20488 | D11: 19856 | E11: =C11/D11 -> 1.03182917 | F11: 22776 | G11: =C11/F11 -> 0.899543379
B12: 科目10 | C12: 18896 | D12: 18169 | E12: =C12/D12 -> 1.040013209 | F12: 17987 | G12: =C12/F12 -> 1.050536499
B13: 科目11 | C13: 17610 | D13: 20907 | E13: =C13/D13 -> 0.8423016215 | F13: 19037 | G13: =C13/F13 -> 0.9250407102
B14: 科目12 | C14: 18080 | D14: 15193 | E14: =C14/D14 -> 1.190021721 | F14: 16283 | G14: =C14/F14 -> 1.110360499
B15: 科目13 | C15: 4331 | D15: 5625 | E15: =C15/D15 -> 0.7699555556 | F15: 6015 | G15: =C15/F15 -> 0.7200332502
B16: 科目14 | C16: 7854 | D16: 6825 | E16: =C16/D16 -> 1.150769231 | F16: 6545 | G16: =C16/F16 -> 1.2
B17: 科目15 | C17: 5955 | D17: 6015 | E17: =C17/D17 -> 0.9900249377 | F17: 7262 | G17: =C17/F17 -> 0.8200220325
